bitfinex/quotes_BTCUSD_20251217
["timestamp","ask_amount","ask_price","bid_price","bid_amount"]
[1765951995737,0.01149319,87008.0,86999.0,1.5e-07]
[1765951995738,0.34976505,87000.0,86999.0,1.5e-07]
[1765951995928,0.7662025,87000.0,86999.0,1.5e-07]
[1765951997795,0.7702025,87000.0,86999.0,1.5e-07]
[1765951997987,0.7742025,87000.0,86999.0,1.5e-07]
[1765951998143,0.7742025,87000.0,86999.0,0.00041029]
[1765951998344,0.7742025,87000.0,86999.0,2.9e-07]
[1765951999991,0.94055204,87000.0,86999.0,2.9e-07]
[1765952000461,0.82422089,87000.0,86999.0,2.9e-07]
[1765952001686,0.38477262,86982.0,86981.0,0.05]
[1765952001932,0.38481493,86966.0,86965.0,0.0004]
[1765952003592,0.25174755,86966.0,86965.0,0.0004]
[1765952005186,0.25174755,86966.0,86965.0,0.0024]
[1765952005398,0.55315894,86966.0,86965.0,0.0024]
[1765952005616,0.61056912,86966.0,86965.0,0.0024]
[1765952005842,0.55315894,86966.0,86965.0,0.0024]
[1765952006273,0.55315894,86966.0,86965.0,0.0014]
[1765952006685,0.61056912,86966.0,86965.0,0.0004]
[1765952007112,0.61156912,86966.0,86965.0,0.0004]
[1765952007555,0.61256912,86966.0,86965.0,0.0004]
[1765952007995,0.61156912,86966.0,86965.0,0.0004]
[1765952008873,0.61356912,86966.0,86965.0,0.0004]
[1765952009544,0.48161894,86966.0,86965.0,0.0004]
[1765952009771,0.13486755,86966.0,86965.0,0.0004]
[1765952010726,0.25474755,86966.0,86965.0,0.0004]
[1765952011130,0.2654534,86966.0,86965.0,0.0004]
[1765952012597,0.2654534,86966.0,86965.0,0.00147317]
[1765952013645,0.38045356,86966.0,86965.0,0.00147317]
[1765952016228,0.2654534,86966.0,86965.0,0.00147317]
[1765952016709,0.32286358,86966.0,86965.0,0.00147317]
[1765952018320,0.2654534,86966.0,86965.0,0.00147317]
[1765952018571,0.01370585,86966.0,86965.0,0.11872604]
[1765952018893,0.01370585,86966.0,86965.0,0.16329121]
[1765952019188,0.0137157,86966.0,86965.0,0.04977604]
[1765952019348,0.0127157,86966.0,86965.0,0.04977604]
[1765952019537,0.0107157,86966.0,86965.0,0.04977604]
[1765952019977,0.0117157,86966.0,86965.0,0.00308604]
[1765952021168,0.10955011,86966.0,86965.0,0.11872604]
[1765952021376,0.09883441,86966.0,86965.0,0.11872604]
[1765952022313,0.10956848,86966.0,86965.0,0.11872604]
[1765952022736,0.10856848,86966.0,86965.0,0.11872604]
[1765952022937,0.10856848,86966.0,86965.0,0.11972604]
[1765952023283,0.10856848,86966.0,86965.0,0.12072604]
[1765952023619,0.10856848,86966.0,86965.0,0.11872604]
[1765952023920,0.10856848,86966.0,86965.0,0.12072604]
[1765952024131,0.10856848,86966.0,86965.0,0.12172604]
[1765952024864,0.10856848,86966.0,86965.0,0.05277604]
[1765952026107,0.01073407,86966.0,86965.0,0.52594121]
[1765952026275,7.367e-05,86982.0,86965.0,0.52594121]
[1765952026276,0.01076938,86981.0,86980.0,0.11351517]
[1765952026570,0.01076938,86981.0,86978.0,0.03219716]
[1765952026571,0.01076938,86981.0,86979.0,0.11351517]
[1765952026736,0.01076938,86980.0,86979.0,0.04830287]
[1765952026934,0.01076938,86980.0,86979.0,0.11725287]
[1765952030178,7.367e-05,86982.0,86980.0,0.22993791]
[1765952031034,7.367e-05,86982.0,86981.0,0.04669]
[1765952031760,7.367e-05,86982.0,86980.0,0.00059961]
[1765952031963,7.367e-05,86982.0,86980.0,0.22993562]
[1765952032280,7.367e-05,86982.0,86981.0,0.11725287]
[1765952032672,7.367e-05,86982.0,86981.0,0.23076804]
[1765952034146,7.367e-05,86982.0,86981.0,0.23376804]
[1765952034341,7.367e-05,86982.0,86981.0,0.26432366]
[1765952035072,7.367e-05,86982.0,86981.0,0.23576804]
[1765952037231,7.367e-05,86982.0,86981.0,0.23633608]
[1765952037576,7.367e-05,86982.0,86981.0,0.25457608]
[1765952039362,7.367e-05,86982.0,86981.0,0.2851173]
[1765952039596,7.367e-05,86982.0,86981.0,0.25457608]
[1765952042522,7.367e-05,86982.0,86981.0,0.59529447]
[1765952043863,7.367e-05,86982.0,86981.0,0.41352091]
[1765952044089,7.367e-05,86982.0,86981.0,0.18176547]
[1765952044287,7.367e-05,86982.0,86981.0,0.17676547]
[1765952044690,7.367e-05,86982.0,86981.0,0.18076547]
[1765952044867,7.367e-05,86982.0,86981.0,0.16252547]
[1765952045083,7.367e-05,86982.0,86981.0,0.18076547]
[1765952047211,7.367e-05,86982.0,86981.0,0.14006091]
[1765952049343,7.367e-05,86982.0,86981.0,0.18078637]
[1765952050447,7.367e-05,86982.0,86981.0,0.09364144]
[1765952050663,7.367e-05,86982.0,86981.0,0.00618091]
[1765952050875,7.367e-05,86982.0,86981.0,0.16882608]
[1765952051083,7.367e-05,86982.0,86981.0,0.23887608]
[1765952051305,7.367e-05,86982.0,86981.0,0.23687608]
[1765952051509,7.367e-05,86982.0,86981.0,0.23487608]
[1765952051729,7.367e-05,86982.0,86981.0,0.23687608]
[1765952051934,7.367e-05,86982.0,86981.0,0.23787608]
[1765952052122,7.367e-05,86982.0,86981.0,0.23587608]
[1765952052332,7.367e-05,86982.0,86981.0,0.23687608]
[1765952054626,7.367e-05,86982.0,86981.0,0.26746356]
[1765952055437,7.367e-05,86982.0,86981.0,0.23687608]
[1765952057663,7.367e-05,86982.0,86981.0,0.12336091]
[1765952057865,7.367e-05,86982.0,86981.0,0.23687608]
[1765952060584,7.367e-05,86982.0,86981.0,0.27764661]
[1765952060789,7.367e-05,86982.0,86981.0,0.23687608]
[1765952061426,7.367e-05,86982.0,86981.0,0.27764661]
[1765952061628,7.367e-05,86982.0,86981.0,0.23687608]
[1765952062456,7.367e-05,86982.0,86981.0,0.27764661]
[1765952063287,7.367e-05,86982.0,86981.0,0.23687608]
[1765952063494,7.367e-05,86982.0,86981.0,0.27764661]
[1765952064134,7.367e-05,86982.0,86981.0,0.23687608]
[1765952064993,7.367e-05,86982.0,86981.0,0.16682608]
[1765952065885,7.367e-05,86982.0,86981.0,0.11769608]
[1765952066941,7.367e-05,86982.0,86981.0,0.00418091]
[1765952067366,0.11960367,86982.0,86981.0,0.00256804]
[1765952067516,0.11960367,86982.0,86981.0,0.03323898]
[1765952069977,0.04875367,86982.0,86981.0,0.03323898]
[1765952070179,7.367e-05,86982.0,86981.0,0.08236898]
[1765952070593,7.367e-05,86982.0,86981.0,0.15241898]
[1765952071491,7.367e-05,86982.0,86981.0,0.08236898]
[1765952072044,7.367e-05,86982.0,86981.0,0.12336091]
[1765952073493,7.367e-05,86982.0,86981.0,0.00418091]
[1765952073790,7.367e-05,86982.0,86981.0,0.03485459]
[1765952074890,7.367e-05,86982.0,86981.0,0.00418091]
[1765952076378,0.03624367,86982.0,86981.0,0.00418091]
[1765952077618,7.367e-05,86982.0,86981.0,0.00418091]
[1765952078689,7.367e-05,86982.0,86981.0,0.12816091]
[1765952079749,7.367e-05,86982.0,86981.0,0.29624272]
[1765952079974,7.367e-05,86982.0,86981.0,0.24167608]
[1765952080559,7.367e-05,86982.0,86981.0,0.30224592]
[1765952081064,7.367e-05,86982.0,86981.0,0.24167608]
[1765952085766,7.367e-05,86982.0,86981.0,0.30314462]
[1765952086354,7.367e-05,86982.0,86981.0,0.24167608]
[1765952088628,7.367e-05,86982.0,86981.0,0.30314462]
[1765952090206,7.367e-05,86982.0,86981.0,0.11540945]
[1765952090774,7.367e-05,86982.0,86981.0,0.18962945]
[1765952091596,0.0114957,86989.0,86986.0,0.0114961]
[1765952091795,0.0114957,86989.0,86986.0,0.05262569]
[1765952093455,0.24141219,86989.0,86986.0,0.04112959]
[1765952094038,0.0114957,86989.0,86987.0,0.11351517]
[1765952094238,0.0114957,86989.0,86986.0,0.04112959]
[1765952094506,0.32774817,86990.0,86987.0,0.01149597]
[1765952094655,0.09783441,86990.0,86988.0,0.22991509]
[1765952094984,0.0114953,86992.0,86988.0,0.24141092]
[1765952095191,0.0114953,86992.0,86990.0,0.03075941]
[1765952095394,0.0114953,86992.0,86991.0,0.07046]
[1765952096334,0.0114953,86992.0,86991.0,0.0207]
[1765952097857,0.01149504,86994.0,86991.0,0.02231287]
[1765952097979,0.22990355,86993.0,86991.0,0.02231287]
[1765952098440,0.22989134,86998.0,86991.0,0.02231287]
[1765952098441,0.01149438,86999.0,86995.0,0.24139237]
[1765952098645,0.03724,87001.0,87000.0,0.11351517]
[1765952099077,0.03724,87001.0,86997.0,0.11351517]
[1765952099078,0.2413793,87000.0,86997.0,0.11351517]
[1765952099717,0.2413793,87000.0,86995.0,0.01149491]
[1765952100214,0.01149385,87003.0,86997.0,0.0207]
[1765952100436,0.0114924,87014.0,87011.0,0.07368]
[1765952100646,0.0114924,87014.0,87011.0,0.03541279]
[1765952101051,0.24133684,87016.0,87012.0,0.01149266]
[1765952101257,0.22985249,87013.0,87009.0,0.01149306]
[1765952101462,0.24134742,87012.0,87008.0,0.11351517]
[1765952101675,0.01149279,87011.0,87008.0,0.12500836]
[1765952102051,0.01149266,87012.0,87009.0,0.01149306]
[1765952102251,0.03626,87016.0,87010.0,0.01149293]
[1765952102457,0.24133226,87017.0,87013.0,0.01149253]
[1765952102670,0.011492,87017.0,87013.0,0.01149253]
[1765952103003,0.001,87016.0,87013.0,0.01149253]
[1765952103227,0.001,87016.0,87014.0,0.22984807]
[1765952103432,0.001,87016.0,87015.0,0.11351517]
[1765952103636,0.001,87016.0,87015.0,0.11361533]
[1765952103783,0.002,87017.0,87015.0,0.00010016]
[1765952103990,0.004,87017.0,87016.0,0.46895082]
[1765952104199,0.002,87017.0,87016.0,0.28121565]
[1765952104404,0.002,87017.0,87016.0,0.16488804]
[1765952104608,0.002,87017.0,87016.0,0.01985287]
[1765952105008,0.002,87017.0,87016.0,0.00161287]
[1765952105210,0.24132876,87019.0,87016.0,0.00161287]
[1765952105416,0.01149174,87019.0,87016.0,0.00161287]
[1765952105663,0.01149134,87022.0,87018.0,0.24132708]
[1765952105867,0.09783441,87025.0,87022.0,0.22982694]
[1765952106840,0.01149042,87029.0,87026.0,0.01909]
[1765952107048,0.22981328,87028.0,87026.0,0.01909]
[1765952107398,0.22982429,87023.0,87022.0,0.11512804]
[1765952108592,0.37991429,87023.0,87022.0,0.00161287]
[1765952108813,0.01149187,87018.0,87015.0,0.00010016]
[1765952109024,0.15009,87016.0,87015.0,0.00010016]
[1765952109375,0.08148,87016.0,87015.0,0.00010016]
[1765952109583,0.03628,87016.0,87015.0,0.00010016]
[1765952109789,0.09510623,87017.0,87015.0,0.00171303]
[1765952110782,0.09510623,87017.0,87015.0,0.00271303]
[1765952111179,0.09510623,87017.0,87015.0,0.00171303]
[1765952111771,0.24133187,87018.0,87015.0,0.07126303]
[1765952111772,0.01149187,87018.0,87015.0,0.07126303]
[1765952112071,0.01149134,87022.0,87018.0,0.10484]
[1765952112309,0.2298322,87021.0,87018.0,0.03529]
[1765952112465,0.24132367,87021.0,87018.0,0.03529]
[1765952112671,0.22983486,87019.0,87018.0,0.03529]
[1765952113231,0.33914896,87024.0,87018.0,0.03529]
[1765952113232,0.01148989,87033.0,87027.0,0.22981372]
[1765952113429,0.01149055,87028.0,87025.0,0.01149095]
[1765952113773,0.22981373,87027.0,87025.0,0.01149095]
[1765952114003,0.01149068,87027.0,87024.0,0.12500625]
[1765952114209,0.09783441,87025.0,87024.0,0.24279625]
[1765952114823,0.09783441,87025.0,87024.0,0.16175517]
[1765952115331,0.09783441,87025.0,87024.0,0.11351517]
[1765952115826,0.09783441,87025.0,87024.0,0.16175517]
[1765952116031,0.09783441,87025.0,87024.0,0.23130517]
[1765952116383,0.09783441,87025.0,87024.0,0.16175517]
[1765952116603,0.09783441,87025.0,87024.0,0.23130517]
[1765952117626,0.09783441,87025.0,87020.0,0.11351517]
[1765952117627,0.01149147,87021.0,87020.0,0.11351517]
[1765952117903,0.01149147,87021.0,87013.0,0.22984975]
[1765952117904,0.24133172,87018.0,87015.0,0.11361533]
[1765952118106,0.24132285,87021.0,87016.0,0.01824]
[1765952118312,0.24132285,87021.0,87018.0,0.01149187]
[1765952118313,0.01149147,87021.0,87018.0,0.01149187]
[1765952118723,0.08010187,87018.0,87015.0,0.00010016]
[1765952119517,0.01149187,87018.0,87015.0,0.00010016]
[1765952119880,0.22983671,87019.0,87017.0,0.02169]
[1765952120301,0.22983671,87019.0,87015.0,0.00010016]
[1765952120302,0.22984278,87016.0,87015.0,0.00010016]
[1765952121091,0.24133112,87018.0,87015.0,0.00010016]
[1765952121477,0.22984278,87016.0,87015.0,0.00010016]
[1765952121908,0.22984237,87017.0,87015.0,0.00010016]
[1765952122857,0.22984237,87017.0,87015.0,0.00110016]
[1765952123502,0.22984237,87017.0,87015.0,0.00010016]
[1765952127331,0.24133112,87018.0,87015.0,0.00010016]
[1765952127950,0.24132495,87020.0,87015.0,0.00010016]
[1765952127951,0.24132495,87020.0,87016.0,0.06955]
[1765952128158,0.24131734,87023.0,87019.0,0.01149174]
[1765952128435,0.24131734,87023.0,87022.0,0.11351517]
[1765952128589,0.24132327,87021.0,87020.0,0.11351517]
[1765952130652,0.01149147,87021.0,87020.0,0.11351517]
[1765952131074,0.24132383,87020.0,87017.0,0.11351517]
[1765952131287,0.24132383,87020.0,87016.0,0.00161287]
[1765952131288,0.24132847,87019.0,87016.0,0.00161287]
[1765952131524,0.22984278,87016.0,87015.0,0.03085957]
[1765952131736,0.24133101,87018.0,87015.0,0.03085957]
[1765952132398,0.01149187,87018.0,87017.0,0.001]
[1765952132553,0.01149187,87018.0,87017.0,0.03629]
[1765952132754,0.01149187,87018.0,87017.0,0.03529]
[1765952133563,0.24132937,87018.0,87017.0,0.03529]
[1765952134368,0.01149187,87018.0,87017.0,0.03529]
[1765952135359,0.24132937,87018.0,87017.0,0.03529]
[1765952135533,0.24132937,87018.0,87016.0,0.03075941]
[1765952137190,0.04876,87017.0,87016.0,0.03075941]
[1765952137581,0.24132937,87018.0,87016.0,0.03075941]
[1765952138579,0.26606076,87040.0,87029.0,0.01149042]
[1765952138784,0.03091431,87048.0,87029.0,0.01149042]
[1765952138785,0.0114887,87042.0,87037.0,0.01148936]
[1765952138980,0.24126752,87041.0,87038.0,0.11351517]
[1765952139184,0.01148897,87040.0,87037.0,0.01148936]
[1765952139572,0.01148883,87041.0,87038.0,0.01148923]
[1765952139765,0.01148897,87040.0,87036.0,0.01148949]
[1765952140009,0.24126838,87040.0,87035.0,0.22979041]
[1765952140222,0.24126838,87040.0,87034.0,0.03663976]
[1765952140223,0.01148923,87038.0,87034.0,0.03663976]
[1765952140630,0.24126838,87040.0,87035.0,0.01148963]
[1765952140829,0.001,87036.0,87035.0,0.24128022]
[1765952141129,0.0114891,87039.0,87035.0,0.01148963]
[1765952141329,0.001,87038.0,87035.0,0.01148963]
[1765952141765,0.01348897,87040.0,87036.0,0.01148949]
[1765952142151,0.01148897,87040.0,87036.0,0.01148949]
[1765952142362,0.001,87038.0,87036.0,0.01148949]
[1765952142946,0.01148897,87040.0,87036.0,0.01148949]
[1765952143156,0.002,87040.0,87038.0,0.22978272]
[1765952143361,0.002,87040.0,87039.0,0.06195692]
[1765952143537,0.002,87040.0,87039.0,0.11633]
[1765952143738,0.01148804,87047.0,87040.0,0.24126838]
[1765952143934,0.01148844,87044.0,87041.0,0.01148883]
[1765952144863,0.01148883,87041.0,87038.0,0.0322688]
[1765952145070,0.03399,87039.0,87038.0,0.00161287]
[1765952146006,0.08275,87039.0,87038.0,0.00161287]
[1765952146237,0.15659,87039.0,87038.0,0.00161287]
[1765952146572,0.04876,87035.0,87034.0,0.01824]
[1765952146791,0.1226,87035.0,87034.0,0.01824]
[1765952146991,0.04876,87035.0,87034.0,0.01824]
[1765952147193,0.01148936,87037.0,87034.0,0.01824]
[1765952147399,0.2412789,87037.0,87034.0,0.01824]
[1765952147940,0.09783441,87038.0,87034.0,0.02972976]
[1765952148140,0.10932364,87038.0,87034.0,0.02972976]
[1765952148428,0.10932364,87038.0,87034.0,0.01824]
[1765952148429,0.22979182,87036.0,87034.0,0.01824]
[1765952148608,0.22979182,87036.0,87034.0,0.01924]
[1765952149221,0.22979182,87036.0,87034.0,0.01824]
[1765952149424,0.22979237,87036.0,87034.0,0.01824]
[1765952150294,0.1226,87035.0,87034.0,0.01824]
[1765952151058,0.24129804,87030.0,87027.0,0.03065593]
[1765952151176,0.03399,87031.0,87026.0,0.04885593]
[1765952151387,0.07384,87029.0,87026.0,0.0182]
[1765952151582,0.1226,87027.0,87026.0,0.0182]
[1765952151999,0.04876,87027.0,87026.0,0.0182]
[1765952152206,0.03399,87031.0,87028.0,0.01149055]
[1765952152406,0.08532976,87034.0,87030.0,0.12500546]
[1765952152630,0.08532976,87034.0,87030.0,0.01149029]
[1765952153102,0.07384,87034.0,87032.0,0.22980053]
[1765952153277,0.03399,87036.0,87035.0,0.34330778]
[1765952153678,0.03399,87039.0,87038.0,0.22978469]
[1765952153880,0.15659,87039.0,87038.0,0.22978469]
[1765952154266,0.03399,87039.0,87038.0,0.22978469]
[1765952154499,0.03399,87046.0,87042.0,0.0114887]
[1765952154705,0.34908194,87046.0,87043.0,0.01148857]
[1765952155069,0.0182,87050.0,87043.0,0.01148857]
[1765952155070,0.01168725,87053.0,87044.0,0.01148844]
[1765952155328,0.24123788,87051.0,87046.0,0.01148817]
[1765952155476,0.08532751,87051.0,87046.0,0.01148817]
[1765952155661,0.08532751,87051.0,87046.0,0.24134996]
[1765952155866,0.01168725,87053.0,87050.0,0.01148765]
[1765952155867,0.0002,87053.0,87050.0,0.01148765]
[1765952156067,0.0002,87053.0,87051.0,0.22975007]
[1765952157310,0.0012,87053.0,87051.0,0.34326524]
[1765952158048,0.0022,87053.0,87051.0,0.22975007]
[1765952158241,0.0022,87053.0,87052.0,0.04817]
[1765952158661,0.0012,87053.0,87052.0,0.04817]
[1765952158863,0.0022,87053.0,87052.0,0.04817]
[1765952159022,0.0022,87053.0,87051.0,0.22975007]
[1765952159404,0.0002,87053.0,87051.0,0.22975007]
[1765952159605,0.0012,87053.0,87051.0,0.22975007]
[1765952159801,0.0022,87053.0,87051.0,0.22975007]
[1765952160071,0.0012,87053.0,87051.0,0.22975007]
[1765952160485,0.0022,87053.0,87051.0,0.22975007]
[1765952160728,0.0022,87053.0,87050.0,0.01148765]
[1765952160952,0.0012,87053.0,87050.0,0.01148765]
[1765952161122,0.01268725,87053.0,87050.0,0.01148765]
[1765952161313,0.24343468,87053.0,87049.0,0.27866149]
[1765952161509,0.01368725,87053.0,87050.0,0.01148765]
[1765952161724,0.0012,87053.0,87050.0,0.24123814]
[1765952162139,0.0022,87053.0,87051.0,0.22974865]
[1765952162297,0.0022,87053.0,87050.0,0.24123896]
[1765952162654,0.0012,87053.0,87050.0,0.24123896]
[1765952162858,0.0022,87053.0,87050.0,0.24123896]
[1765952163693,0.0012,87053.0,87052.0,0.22974773]
[1765952164027,0.0002,87053.0,87052.0,0.22974773]
[1765952164229,0.0012,87053.0,87052.0,0.22974773]
[1765952164731,0.0002,87053.0,87050.0,0.24123896]
[1765952165497,0.0002,87053.0,87051.0,0.22974838]
[1765952166688,0.0002,87053.0,87050.0,0.01148765]
[1765952167019,0.0002,87053.0,87050.0,0.24123893]
[1765952168401,0.0002,87053.0,87051.0,0.22974808]
[1765952169166,0.0002,87053.0,87050.0,0.24123893]
[1765952169523,0.0002,87053.0,87051.0,0.22974876]
[1765952169714,0.0002,87053.0,87050.0,0.24123893]
[1765952170210,0.0002,87053.0,87051.0,0.22974815]
[1765952171732,0.0002,87053.0,87050.0,0.24123893]
[1765952172145,0.15259,87049.0,87046.0,0.00171303]
[1765952172358,0.11883,87047.0,87046.0,0.00171303]
[1765952172562,0.04524,87047.0,87046.0,0.00171303]
[1765952172770,0.13606207,87047.0,87046.0,0.00010016]
[1765952172981,0.365823,87047.0,87046.0,0.00010016]
[1765952173215,0.34859093,87047.0,87046.0,0.00010016]
[1765952174357,0.34959093,87047.0,87046.0,0.00010016]
[1765952175682,0.35059093,87047.0,87046.0,0.00010016]
[1765952176580,0.6520567,87047.0,87046.0,0.00010016]
[1765952177282,0.70946688,87047.0,87046.0,0.00010016]
[1765952177498,0.70946688,87047.0,87021.0,0.26048345]
[1765952177499,0.11883,87021.0,87020.0,0.1441711]
[1765952177710,0.07359,87020.0,87018.0,0.03065593]
[1765952177922,0.01149147,87021.0,87018.0,0.00011302]
[1765952178354,0.03305121,87023.0,87018.0,0.01160489]
[1765952178567,0.10664121,87023.0,87018.0,0.24143992]
[1765952179012,0.01149147,87021.0,87018.0,0.01160489]
[1765952179226,0.01149147,87021.0,87018.0,0.00011302]
[1765952179436,0.22983222,87020.0,87018.0,0.00011302]
[1765952179681,0.08508147,87021.0,87020.0,0.002]
[1765952179682,0.01149147,87021.0,87020.0,0.002]
[1765952179902,0.13032147,87021.0,87020.0,0.002]
[1765952180116,0.30342222,87020.0,87018.0,0.00011302]
[1765952180586,0.11883,87019.0,87018.0,0.00011302]
[1765952181035,0.13606761,87019.0,87018.0,0.00011302]
[1765952181245,0.11883,87019.0,87018.0,0.00011302]
[1765952182802,0.13606761,87019.0,87018.0,0.00011302]
[1765952183216,0.11883,87019.0,87018.0,0.00011302]
[1765952183641,0.13606761,87019.0,87018.0,0.00011302]
[1765952184800,0.11883,87019.0,87018.0,0.00011302]
[1765952185253,0.11983,87019.0,87018.0,0.00011302]
[1765952186470,0.12083,87019.0,87018.0,0.00011302]
[1765952188493,0.23155176,87019.0,87018.0,0.00011302]
[1765952188723,0.12083,87019.0,87018.0,0.00011302]
[1765952188904,0.23583016,87019.0,87018.0,3.02e-06]
[1765952190693,0.12083,87019.0,87018.0,3.02e-06]
[1765952200363,0.13806761,87019.0,87018.0,3.02e-06]
[1765952200593,0.12083,87019.0,87018.0,3.02e-06]
[1765952200801,0.17824018,87019.0,87018.0,3.02e-06]
[1765952201234,0.12083,87019.0,87018.0,3.02e-06]
[1765952201615,0.17824018,87019.0,87018.0,3.02e-06]
[1765952201851,0.12083,87019.0,87018.0,3.02e-06]
[1765952202634,0.17824018,87019.0,87018.0,3.02e-06]
[1765952203976,0.23583016,87019.0,87018.0,3.02e-06]
[1765952205180,0.24659419,87019.0,87018.0,3.02e-06]
[1765952208016,0.5352752,87019.0,87018.0,3.02e-06]
[1765952208316,0.42229403,87019.0,87018.0,3.02e-06]
[1765952208522,0.53729419,87019.0,87018.0,3.02e-06]
[1765952210826,0.53529419,87019.0,87018.0,3.02e-06]
[1765952211237,0.53729419,87019.0,87018.0,3.02e-06]
[1765952212702,0.567861,87019.0,87018.0,3.02e-06]
[1765952212910,0.68419215,87019.0,87018.0,3.02e-06]
[1765952213836,0.68319215,87019.0,87018.0,3.02e-06]
[1765952214174,0.68519215,87019.0,87018.0,3.02e-06]
[1765952214464,0.68419215,87019.0,87018.0,3.02e-06]
[1765952214671,0.68619215,87019.0,87018.0,3.02e-06]
[1765952214875,0.569861,87019.0,87018.0,3.02e-06]
[1765952234781,0.601771,87019.0,87018.0,3.02e-06]
[1765952234998,0.48677084,87019.0,87018.0,3.02e-06]
[1765952235164,0.50497084,87019.0,87018.0,3.02e-06]
[1765952235986,0.50297084,87019.0,87018.0,3.02e-06]
[1765952236347,0.50397084,87019.0,87018.0,3.02e-06]
[1765952236549,0.56651468,87019.0,87018.0,3.02e-06]
[1765952236753,0.56751468,87019.0,87018.0,3.02e-06]
[1765952237186,0.62392486,87019.0,87018.0,3.02e-06]
[1765952237588,0.55938102,87019.0,87018.0,3.02e-06]
[1765952238331,0.50197084,87019.0,87018.0,3.02e-06]
[1765952238737,0.50297084,87019.0,87018.0,3.02e-06]
[1765952239318,0.56038102,87019.0,87018.0,3.02e-06]
[1765952239721,0.50297084,87019.0,87018.0,3.02e-06]
[1765952239921,0.617971,87019.0,87018.0,3.02e-06]
[1765952240307,0.61799544,87019.0,87018.0,3.02e-06]
[1765952241953,0.19409528,87019.0,87018.0,3.02e-06]
[1765952242195,0.002,87019.0,87018.0,0.22581106]
[1765952242755,0.002,87019.0,87018.0,0.25650371]
[1765952243210,0.01149095,87025.0,87020.0,0.01149161]
[1765952243347,0.09783441,87023.0,87020.0,0.12500678]
[1765952243554,0.09783441,87023.0,87020.0,0.35483677]
[1765952243758,0.09783441,87023.0,87021.0,0.22982733]
[1765952244380,0.01149147,87021.0,87018.0,0.00361589]
[1765952244586,0.27434486,87019.0,87018.0,3.02e-06]
[1765952245875,0.27434486,87019.0,87018.0,0.00100302]
[1765952246341,0.62245504,87019.0,87018.0,3.02e-06]
[1765952246528,0.65141655,87019.0,87018.0,3.02e-06]
[1765952246732,0.22990619,86992.0,86991.0,0.03094509]
[1765952246978,0.22990619,86992.0,86991.0,0.00036547]
[1765952246979,0.4402706,86992.0,86991.0,0.00036547]
[1765952247710,0.49768078,86992.0,86991.0,0.00036547]
[1765952248534,0.4402706,86992.0,86991.0,0.00036547]
[1765952249667,0.49768078,86992.0,86991.0,0.00036547]
[1765952249992,0.49768078,86992.0,86971.0,0.0182]
[1765952249993,0.22995906,86972.0,86971.0,0.03069265]
[1765952250138,0.22995906,86972.0,86971.0,0.00011322]
[1765952250969,0.27446906,86972.0,86971.0,0.00011322]
[1765952251177,0.22995906,86972.0,86971.0,0.00411322]
[1765952251397,0.22995906,86972.0,86971.0,0.00572609]
[1765952254349,0.22995906,86972.0,86971.0,0.04755609]
[1765952254563,0.22995906,86972.0,86971.0,0.11376609]
[1765952254767,0.22995906,86972.0,86971.0,0.00572609]
[1765952255627,0.22995906,86972.0,86971.0,0.00635735]
[1765952258957,0.24145653,86973.0,86971.0,0.00635735]
[1765952259130,0.33481906,86972.0,86971.0,0.00411322]
[1765952259573,0.22995906,86972.0,86971.0,0.00411322]
[1765952260307,0.22995906,86972.0,86971.0,0.00011322]
[1765952261445,0.33481906,86972.0,86971.0,0.00211322]
[1765952261864,0.33481906,86972.0,86971.0,0.00011322]
[1765952264611,0.45115021,86972.0,86971.0,0.00011322]
[1765952264816,0.33481906,86972.0,86971.0,3.22e-06]
[1765952265019,0.39222924,86972.0,86971.0,4.48e-06]
[1765952265168,0.44981922,86972.0,86971.0,4.48e-06]
[1765952265370,0.33481906,86972.0,86971.0,4.48e-06]
[1765952265947,0.22995906,86972.0,86971.0,4.48e-06]
[1765952266427,0.33581906,86972.0,86971.0,4.48e-06]
[1765952266600,0.33681906,86972.0,86971.0,4.48e-06]
[1765952267122,0.33481906,86972.0,86971.0,4.48e-06]
[1765952267893,0.39222924,86972.0,86971.0,4.48e-06]
[1765952268087,0.33481906,86972.0,86971.0,4.48e-06]
[1765952268697,0.33522246,86972.0,86971.0,4.48e-06]
[1765952269296,0.33622246,86972.0,86971.0,4.48e-06]
[1765952269718,0.33722246,86972.0,86971.0,4.48e-06]
[1765952270121,0.23236246,86972.0,86971.0,4.48e-06]
[1765952271068,0.23136246,86972.0,86971.0,4.48e-06]
[1765952271659,0.23036246,86972.0,86971.0,4.48e-06]
[1765952272614,0.33522246,86972.0,86971.0,4.48e-06]
[1765952273392,0.39263264,86972.0,86971.0,4.48e-06]
[1765952273507,0.79966379,86972.0,86971.0,4.48e-06]
[1765952273719,0.62592246,86972.0,86971.0,4.48e-06]
[1765952274783,0.62692246,86972.0,86971.0,4.48e-06]
[1765952275003,0.62792246,86972.0,86971.0,4.48e-06]
[1765952276459,0.69610178,86972.0,86971.0,4.48e-06]
[1765952276656,0.6386916,86972.0,86971.0,4.48e-06]
[1765952277623,0.5338316,86972.0,86971.0,4.48e-06]
[1765952277758,0.23236246,86972.0,86971.0,4.48e-06]
[1765952278922,0.23136246,86972.0,86971.0,4.48e-06]
[1765952279084,0.23036246,86972.0,86971.0,4.48e-06]
[1765952281147,0.33522246,86972.0,86971.0,4.48e-06]
[1765952282527,0.6941096,86972.0,86971.0,4.48e-06]
[1765952282704,0.63669942,86972.0,86971.0,4.48e-06]
[1765952283048,0.75169958,86972.0,86971.0,4.48e-06]
[1765952283524,0.63669942,86972.0,86971.0,4.48e-06]
[1765952283654,0.53183942,86972.0,86971.0,4.48e-06]
[1765952284067,0.53283942,86972.0,86971.0,4.48e-06]
[1765952284267,0.63637942,86972.0,86971.0,4.48e-06]
[1765952284513,0.63737942,86972.0,86971.0,4.48e-06]
[1765952284709,0.57463942,86972.0,86971.0,4.48e-06]
[1765952284920,0.63637942,86972.0,86971.0,4.48e-06]
[1765952285498,0.63537942,86972.0,86971.0,4.48e-06]
[1765952285700,0.0004034,86972.0,86971.0,0.04293448]
[1765952285902,0.0004034,86972.0,86971.0,0.33787906]
[1765952286098,0.0004034,86972.0,86971.0,0.45139423]
[1765952286521,0.0004034,86972.0,86971.0,0.48208688]
[1765952286722,0.0004034,86972.0,86971.0,0.45139423]
[1765952287121,0.0004034,86972.0,86971.0,0.48216971]
[1765952288073,0.0004034,86972.0,86971.0,0.252208]
[1765952288419,0.0412034,86972.0,86971.0,0.00161735]
[1765952288655,0.1039434,86972.0,86971.0,0.00161735]
[1765952288870,0.05845033,86972.0,86971.0,4.48e-06]
[1765952289069,0.01765033,86972.0,86971.0,4.48e-06]
[1765952289418,0.0004034,86972.0,86971.0,4.48e-06]
[1765952289626,0.01765033,86972.0,86971.0,4.48e-06]
[1765952290542,0.01118427,86972.0,86971.0,4.48e-06]
[1765952290731,0.01218427,86972.0,86971.0,4.48e-06]
[1765952290924,0.01318427,86972.0,86971.0,4.48e-06]
[1765952293531,0.07059445,86972.0,86971.0,4.48e-06]
[1765952293748,0.01318427,86972.0,86971.0,4.48e-06]
[1765952295296,0.01218427,86972.0,86971.0,4.48e-06]
[1765952295521,0.01118427,86972.0,86971.0,4.48e-06]
[1765952296525,0.0284312,86972.0,86971.0,4.48e-06]
[1765952296725,0.01118427,86972.0,86971.0,4.48e-06]